bitfinex-derivatives/quotes_BNBF0:USTF0_20250326
["timestamp","ask_amount","ask_price","bid_price","bid_amount"]
[1742979386767,0.426,632.23,631.95,1.18563171]
[1742979387763,1.19421,632.22,631.95,1.18563171]
[1742979388165,1.19421071,632.21,631.95,1.18563171]
[1742979388361,1.19421071,632.2,631.95,1.18563171]
[1742979388564,1.19421071,632.19,631.95,1.18563171]
[1742979388764,1.19421071,632.18,631.95,1.18563171]
[1742979388964,1.19421071,632.17,631.95,1.18563171]
[1742979389163,1.19421071,632.16,632.0,1.18563171]
[1742979389366,1.19421071,632.15,632.0,1.18563171]
[1742979389566,1.19421071,632.14,632.0,1.18563171]
[1742979389761,1.19421071,632.13,632.0,1.18563171]
[1742979389966,1.19421071,632.12,632.0,1.18563171]
[1742979390168,1.19421071,632.11,632.0,1.18563171]
[1742979390462,1.19421071,632.1,632.0,1.18563171]
[1742979390661,1.19421071,632.09,632.0,1.18563171]
[1742979390863,1.19421071,632.08,632.0,1.18563171]
[1742979391061,1.19421071,632.07,632.0,1.18563171]
[1742979391264,1.129,632.26,632.0,1.18563171]
[1742979391464,1.19418166,632.25,632.0,1.18563171]
[1742979391667,1.19418166,632.24,632.0,1.18563171]
[1742979391968,1.19418166,632.23,631.9,1.18563171]
[1742979392173,1.19418166,632.22,631.9,1.18563171]
[1742979392369,1.19418166,632.21,631.9,1.18563171]
[1742979392562,1.19418166,632.2,631.9,1.18563171]
[1742979392766,1.19418166,632.19,631.9,1.18563171]
[1742979392972,1.19418166,632.18,631.9,1.18563171]
[1742979393168,1.19418166,632.17,631.9,1.18563171]
[1742979393366,1.19418166,632.16,631.9,1.18563171]
[1742979393566,1.19418166,632.15,631.9,1.18563171]
[1742979393767,1.19418166,632.14,631.9,1.18563171]
[1742979393974,1.19418166,632.13,631.9,1.18563171]
[1742979394171,1.19418166,632.12,631.91,1.18563171]
[1742979394371,1.19418166,632.11,631.91,1.18563171]
[1742979394572,1.19418166,632.1,631.91,1.18563171]
[1742979394775,1.19418166,632.09,631.91,1.18563171]
[1742979394975,0.426,632.32,631.91,1.18563171]
[1742979394976,1.19418166,632.08,631.91,1.18563171]
[1742979395172,1.19418166,632.07,631.91,1.18563171]
[1742979395376,0.426,632.32,631.91,1.18563171]
[1742979395572,1.19421012,632.31,631.91,1.18563171]
[1742979395775,1.19421012,632.3,631.91,1.18563171]
[1742979395976,1.19421012,632.29,631.91,1.18563171]
[1742979396179,1.19421012,632.28,631.91,1.18563171]
[1742979396472,1.19420844,632.27,631.91,1.18563171]
[1742979396674,1.448,632.32,631.47,0.27527072]
[1742979396675,1.19420844,632.26,631.86,1.18563171]
[1742979396875,1.19420844,632.25,631.86,1.18563171]
[1742979397071,1.19420844,632.24,631.86,1.18563171]
[1742979397271,1.19420844,632.23,631.86,1.18563171]
[1742979397477,1.19420844,632.22,631.86,1.18563171]
[1742979397677,1.19420844,632.21,631.86,1.18563171]
[1742979397972,1.19420844,632.2,631.86,1.18563171]
[1742979398176,1.19420844,632.19,631.86,1.18563171]
[1742979398378,1.19420844,632.18,631.87,1.18563171]
[1742979398676,1.19420844,632.17,631.87,1.18563171]
[1742979398877,1.19420844,632.16,631.87,1.18563171]
[1742979399072,1.19420844,632.15,631.87,1.18563171]
[1742979399377,1.19420844,632.14,631.87,1.18563171]
[1742979399577,1.19420844,632.13,631.87,1.18563171]
[1742979399877,1.19420844,632.12,631.87,1.18563171]
[1742979400075,1.19420844,632.11,631.87,1.18563171]
[1742979400277,1.19420844,632.1,631.87,1.18563171]
[1742979400479,1.19420844,632.09,631.87,1.18563171]
[1742979400680,1.19420844,632.08,631.84,1.18563171]
[1742979400880,1.448,632.32,631.84,1.18563171]
[1742979401080,1.19415393,632.31,631.84,1.18563171]
[1742979401380,1.19415393,632.3,631.84,1.18563171]
[1742979401574,1.19415393,632.29,631.84,1.18563171]
[1742979401778,1.19415393,632.28,631.84,1.18563171]
[1742979401981,1.19415393,632.27,631.84,1.18563171]
[1742979402173,1.19415393,632.26,631.84,1.18563171]
[1742979402378,1.19415393,632.25,631.84,1.18563171]
[1742979402577,1.19415393,632.24,631.96,1.18563171]
[1742979402776,1.19415393,632.23,631.96,1.18563171]
[1742979402978,1.19415393,632.22,631.96,1.18563171]
[1742979403176,1.19415393,632.21,631.96,1.18563171]
[1742979403376,1.448,632.32,631.96,1.18563171]
[1742979403377,1.19415393,632.2,631.96,1.18563171]
[1742979403582,1.19415393,632.19,631.96,1.18563171]
[1742979403781,1.19415393,632.18,631.96,1.18563171]
[1742979403981,1.19415393,632.17,631.96,1.18563171]
[1742979404183,1.19415393,632.16,631.96,1.18563171]
[1742979404381,1.19415393,632.15,631.96,1.18563171]
[1742979404581,1.19415393,632.14,631.96,1.18563171]
[1742979404783,1.19415393,632.13,631.96,1.18563171]
[1742979404984,1.19415393,632.12,631.99,1.18563171]
[1742979405286,1.19415393,632.11,631.99,1.18563171]
[1742979405486,1.19415393,632.1,631.99,1.18563171]
[1742979405683,1.19415393,632.09,631.99,1.18563171]
[1742979405881,1.19415393,632.08,631.99,1.18563171]
[1742979406082,1.19415393,632.07,631.99,1.18563171]
[1742979406282,1.19415393,632.06,631.99,1.18563171]
[1742979406588,0.426,632.31,631.99,1.18563171]
[1742979406788,1.19420148,632.3,631.99,1.18563171]
[1742979406989,1.19420148,632.29,631.99,1.18563171]
[1742979407193,1.19420148,632.28,631.99,1.18563171]
[1742979407385,1.19420148,632.27,631.99,1.18563171]
[1742979407589,1.19420148,632.26,632.0,1.18563171]
[1742979407787,1.19420148,632.25,632.0,1.18563171]
[1742979407986,1.19420148,632.24,632.0,1.18563171]
[1742979408187,1.19420148,632.23,632.0,1.18563171]
[1742979408390,1.19420148,632.22,632.0,1.18563171]
[1742979408590,1.19420148,632.21,632.0,1.18563171]
[1742979408890,1.19420148,632.2,632.0,1.18563171]
[1742979409093,1.19420148,632.19,632.0,1.18563171]
[1742979409292,1.19420148,632.18,632.0,1.18563171]
[1742979409493,1.19420148,632.17,632.0,1.18563171]
[1742979409689,1.19420148,632.16,632.0,1.18563171]
[1742979409890,1.19420148,632.15,632.0,1.18563171]
[1742979410088,1.19420148,632.14,632.0,1.18563171]
[1742979410289,1.19420148,632.13,632.0,1.18563171]
[1742979410589,1.19420148,632.12,632.0,1.18563171]
[1742979410893,1.19420148,632.11,632.0,1.18563171]
[1742979411093,1.19420148,632.1,632.0,1.18563171]
[1742979411294,1.19420148,632.09,632.0,1.18563171]
[1742979411495,1.19420148,632.08,632.0,1.18563171]
[1742979411694,1.19420148,632.07,632.0,1.18563171]
[1742979411893,0.426,632.31,632.08,1.18563171]
[1742979412094,1.19434696,632.3,632.08,1.18563171]
[1742979412289,1.19434696,632.29,632.08,1.18563171]
[1742979412491,1.19434696,632.28,632.08,1.18563171]
[1742979412689,1.19434696,632.27,632.08,1.18563171]
[1742979412893,1.19434696,632.26,632.08,1.18563171]
[1742979413092,1.19434696,632.25,632.08,1.18563171]
[1742979413295,1.19434696,632.24,632.08,1.18563171]
[1742979413595,1.19434696,632.23,632.08,1.18563171]
[1742979413796,1.19434696,632.22,632.08,1.18563171]
[1742979413997,0.426,632.31,631.54,2.40871339]
[1742979413998,1.19434696,632.21,632.06,1.18563171]
[1742979414198,1.19434696,632.2,632.06,1.18563171]
[1742979414398,1.19434696,632.19,632.06,1.18563171]
[1742979414598,1.19434696,632.18,632.06,1.18563171]
[1742979414800,1.19434696,632.17,632.06,1.18563171]
[1742979414999,1.19434696,632.16,632.06,1.18563171]
[1742979415196,1.19434696,632.15,632.06,1.18563171]
[1742979415399,1.19434696,632.14,632.06,1.18563171]
[1742979415593,1.19434696,632.13,632.06,1.18563171]
[1742979415792,1.19434696,632.12,632.06,1.18563171]
[1742979415996,1.19434696,632.11,632.06,1.18563171]
[1742979416193,1.19434696,632.1,632.06,1.18563171]
[1742979416394,1.19434696,632.09,632.06,1.18563171]
[1742979416595,1.19434696,632.08,632.06,1.18563171]
[1742979416799,1.19434696,632.07,632.04,1.18563171]
[1742979417100,0.426,632.31,632.04,1.18563171]
[1742979417293,1.19437832,632.3,632.04,1.18563171]
[1742979417598,1.19437832,632.29,632.04,1.18563171]
[1742979417798,1.19437832,632.28,632.04,1.18563171]
[1742979417997,1.19437832,632.27,632.04,1.18563171]
[1742979418200,1.19437832,632.26,632.04,1.18563171]
[1742979418499,1.19437832,632.25,632.04,1.18563171]
[1742979418700,1.19437832,632.24,632.04,1.18563171]
[1742979418900,1.19437832,632.23,632.04,1.18563171]
[1742979419197,1.19437832,632.22,631.95,1.18563171]
[1742979419499,1.19437832,632.21,631.95,1.18563171]
[1742979419699,1.19437832,632.2,631.95,1.18563171]
[1742979419895,1.19437832,632.19,631.95,1.18563171]
[1742979420200,1.19437832,632.18,631.95,1.18563171]
[1742979420399,1.19437832,632.17,631.95,1.18563171]
[1742979420594,1.19437832,632.16,631.95,1.18563171]
[1742979420794,1.19437832,632.15,631.95,1.18563171]
[1742979420998,1.19437832,632.14,631.94,1.18563171]
[1742979421194,1.19437832,632.13,631.94,1.18563171]
[1742979421499,1.19437832,632.12,631.94,1.18563171]
[1742979421700,1.19437832,632.11,631.94,1.18563171]
[1742979421896,1.19437832,632.1,631.94,1.18563171]
[1742979422093,1.19437832,632.09,631.94,1.18563171]
[1742979422294,1.19437832,632.08,631.94,1.18563171]
[1742979422499,1.19437832,632.07,631.94,1.18563171]
[1742979422699,1.117,632.26,631.94,1.18563171]
[1742979422902,1.19442731,632.25,631.94,1.18563171]
[1742979423095,1.19442731,632.24,631.94,1.18563171]
[1742979423298,1.19442731,632.23,631.94,1.18563171]
[1742979423599,1.19442918,632.22,631.97,1.18563171]
[1742979423796,1.19442918,632.21,631.97,1.18563171]
[1742979424000,1.19442918,632.2,631.97,1.18563171]
[1742979424200,1.19442918,632.19,631.97,1.18563171]
[1742979424401,1.19442918,632.18,631.97,1.18563171]
[1742979424695,1.19447043,632.17,631.97,1.18563171]
[1742979424900,1.19447043,632.16,631.97,1.18563171]
[1742979425202,1.19447043,632.15,631.97,1.18563171]
[1742979425503,1.117,632.26,631.95,1.18563171]
[1742979425504,1.19447043,632.14,631.95,1.18563171]
[1742979425703,1.19447043,632.13,631.95,1.18563171]
[1742979425902,1.19447043,632.12,631.95,1.18563171]
[1742979426098,1.19447043,632.11,631.95,1.18563171]
[1742979426296,1.117,632.26,631.95,1.18563171]
[1742979426603,1.19446625,632.25,631.95,1.18563171]
[1742979426797,1.19446625,632.24,631.95,1.18563171]
[1742979427001,1.19446625,632.23,631.95,1.18563171]
[1742979427202,1.19446625,632.22,631.99,1.18563171]
[1742979427504,1.19446625,632.21,631.99,1.18563171]
[1742979427697,1.19446625,632.2,631.99,1.18563171]
[1742979427899,1.117,632.26,631.99,1.18563171]
[1742979428099,1.19453358,632.25,631.99,1.18563171]
[1742979428301,1.19453358,632.24,631.99,1.18563171]
[1742979428502,1.19453358,632.23,631.99,1.18563171]
[1742979428700,1.19453358,632.22,631.99,1.18563171]
[1742979428899,1.117,632.26,631.99,1.18563171]
[1742979429101,1.19435762,632.25,631.99,1.18563171]
[1742979429298,1.19435762,632.24,631.99,1.18563171]
[1742979429606,1.117,632.26,631.96,1.18563171]
[1742979429906,1.19401507,632.25,631.96,1.18563171]
[1742979430100,1.117,632.26,631.96,1.18563171]
[1742979430302,1.19374628,632.25,631.96,1.18563171]
[1742979430508,1.117,632.26,631.96,1.18563171]
[1742979430708,1.19375233,632.25,631.96,1.18563171]
[1742979430910,1.117,632.26,631.96,1.18563171]
[1742979431210,1.19375436,632.25,631.96,1.18563171]
[1742979431412,1.117,632.26,631.96,1.18563171]
[1742979431614,1.19351044,632.25,631.98,1.18563171]
[1742979431808,1.117,632.26,631.98,1.18563171]
[1742979432013,1.19351372,632.25,631.98,1.18563171]
[1742979432212,1.117,632.26,631.98,1.18563171]
[1742979434516,0.426,632.3,631.99,1.18563171]
[1742979434717,1.19301633,632.29,631.99,1.18563171]
[1742979434913,1.19301633,632.28,631.99,1.18563171]
[1742979435110,1.19301633,632.27,631.99,1.18563171]
[1742979435313,0.426,632.3,631.99,1.18563171]
[1742979435516,1.19286223,632.29,631.99,1.18563171]
[1742979435716,1.19286223,632.28,631.99,1.18563171]
[1742979436019,1.19286223,632.27,631.99,1.18563171]
[1742979436219,0.426,632.3,631.99,1.18563171]
[1742979436418,1.19272734,632.29,631.99,1.18563171]
[1742979436617,1.19272734,632.28,631.99,1.18563171]
[1742979436818,1.19272734,632.27,631.94,1.18563171]
[1742979437019,0.426,632.3,631.94,1.18563171]
[1742979437219,1.19260896,632.29,631.94,1.18563171]
[1742979437413,1.19260896,632.28,631.94,1.18563171]
[1742979437621,0.426,632.3,631.94,1.18563171]
[1742979437815,1.19259629,632.29,631.94,1.18563171]
[1742979438018,1.19259629,632.28,631.94,1.18563171]
[1742979438217,1.161,632.29,631.92,1.18563171]
[1742979438522,1.19247964,632.28,631.92,1.18563171]
[1742979438723,1.161,632.29,631.92,1.18563171]
[1742979438923,1.19247587,632.28,631.92,1.18563171]
[1742979439117,1.161,632.29,631.93,0.26435148]
[1742979439320,1.19238741,632.28,631.92,1.18563171]
[1742979439517,1.161,632.29,631.93,0.26435148]
[1742979439720,1.19235585,632.28,631.92,1.18563171]
[1742979439922,1.161,632.29,631.92,1.18563171]
[1742979440117,1.19235084,632.28,631.92,1.18563171]
[1742979440320,1.19235084,632.28,631.68,1.17977798]
[1742979440321,1.161,632.29,631.97,1.18563171]
[1742979440520,1.19226195,632.28,631.97,1.18563171]
[1742979440722,1.161,632.29,631.97,1.18563171]
[1742979440926,1.19252188,632.28,631.97,1.18563171]
[1742979441232,1.161,632.29,631.97,1.18563171]
[1742979442532,1.161,632.29,631.98,1.18563171]
[1742979444334,1.161,632.29,631.99,0.26435254]
[1742979446634,1.161,632.29,632.04,1.18563171]
[1742979451438,1.161,632.29,632.06,1.18563171]
[1742979452935,0.426,632.36,632.06,1.18563171]
[1742979453734,0.426,632.36,632.08,1.18563171]
[1742979457341,0.426,632.36,632.14,1.18563171]
[1742979459845,0.426,632.36,632.02,1.18563171]
[1742979461445,0.426,632.36,632.05,1.18563171]
[1742979463647,0.426,632.36,632.13,1.18563171]
[1742979466149,0.426,632.36,632.16,1.18563171]
[1742979468454,0.426,632.36,632.17,1.18563171]
[1742979471257,0.426,632.36,631.7,1.41573358]
[1742979471258,0.426,632.36,632.15,1.18563171]
[1742979473056,1.052,632.4,632.15,1.18563171]
[1742979473256,1.19157791,632.39,632.15,1.18563171]
[1742979473551,1.052,632.4,632.15,1.18563171]
[1742979473757,1.19165853,632.39,632.19,1.18563171]
[1742979473960,1.052,632.4,632.19,1.18563171]
[1742979474157,1.19165931,632.39,632.19,1.18563171]
[1742979474352,1.19174624,632.38,632.19,1.18563171]
[1742979474553,1.052,632.4,632.19,1.18563171]
[1742979474757,1.19175192,632.39,632.19,1.18563171]
[1742979474958,1.052,632.4,632.19,1.18563171]
[1742979475157,1.19175545,632.39,632.19,1.18563171]
[1742979475354,1.19175545,632.38,632.19,1.18563171]
[1742979475556,1.052,632.4,632.18,1.18563171]
[1742979475756,1.19186728,632.39,632.18,1.18563171]
[1742979475952,1.052,632.4,632.18,1.18563171]
[1742979476155,1.19186867,632.39,632.18,1.18563171]
[1742979476357,1.19186867,632.38,632.18,1.18563171]
[1742979476556,1.052,632.4,632.18,1.18563171]
[1742979477658,1.052,632.4,632.19,1.18563171]
[1742979479464,1.052,632.4,632.2,1.18563171]
[1742979480662,0.426,632.5,632.2,1.18563171]
[1742979481871,0.426,632.5,632.0,1.18563171]
[1742979483773,0.95,632.49,632.0,1.18563171]
[1742979484072,0.95,632.49,632.03,1.18563171]
[1742979485674,1.19216546,632.48,632.03,1.18563171]
[1742979485874,1.19216546,632.47,632.03,1.18563171]
[1742979486175,1.19216546,632.46,632.03,1.18563171]
[1742979486368,1.19216546,632.45,632.03,1.18563171]
[1742979486569,1.19216546,632.44,632.02,1.18563171]
[1742979486770,1.19216546,632.43,632.02,1.18563171]
[1742979486976,1.19390538,632.42,632.02,1.18563171]
[1742979487170,1.19390538,632.41,632.02,1.18563171]
[1742979487473,1.19390538,632.4,632.02,1.18563171]
[1742979487674,1.19390538,632.39,632.02,1.18563171]
[1742979487871,1.19390538,632.38,632.02,1.18563171]
[1742979488069,1.19390538,632.37,632.02,1.18563171]
[1742979488270,1.19390538,632.36,632.02,1.18563171]
[1742979488573,1.19390538,632.35,632.02,1.18563171]
[1742979488775,1.19390538,632.34,632.03,1.18563171]
[1742979489075,1.19390538,632.33,632.03,1.18563171]
[1742979489376,0.95,632.49,632.03,1.18563171]
[1742979489377,1.19390538,632.32,632.03,1.18563171]
[1742979489578,0.95,632.49,632.03,1.18563171]
[1742979489777,1.1941145,632.48,632.03,1.18563171]
[1742979489973,1.1941145,632.47,632.03,1.18563171]
[1742979490177,1.1941145,632.46,632.03,1.18563171]
[1742979490372,1.1941145,632.45,632.03,1.18563171]
[1742979490575,1.1941145,632.44,632.03,1.18563171]
[1742979490771,1.1941145,632.43,632.03,1.18563171]
[1742979490975,1.1941145,632.42,632.03,1.18563171]
[1742979491171,1.1941145,632.41,632.2,1.18563171]
[1742979491372,1.1941145,632.4,632.2,1.18563171]
[1742979491573,1.1941145,632.39,632.2,1.18563171]
[1742979491773,1.1941145,632.38,632.2,1.18563171]
[1742979491977,1.1941145,632.37,632.2,1.18563171]
[1742979492179,1.1941145,632.36,632.2,1.18563171]
[1742979492479,1.1941145,632.35,632.2,1.18563171]
[1742979492680,1.1941145,632.34,632.2,1.18563171]
[1742979492874,1.1941145,632.33,632.2,1.18563171]
[1742979493076,1.1941145,632.32,632.2,1.18563171]
[1742979493275,0.95,632.49,632.2,1.18563171]
[1742979493581,1.19418721,632.48,632.2,1.18563171]
[1742979493781,1.19418721,632.47,632.2,1.18563171]
[1742979493978,1.19418721,632.46,632.2,1.18563171]
[1742979494179,1.19418721,632.45,632.2,1.18563171]
[1742979494481,1.19418721,632.44,632.2,1.18563171]
[1742979494683,1.19418721,632.43,632.2,1.18563171]
[1742979494883,1.19418721,632.42,632.2,1.18563171]
[1742979495084,1.19418721,632.41,632.2,1.18563171]
[1742979495277,1.19418721,632.4,632.2,1.18563171]
[1742979495479,1.19418721,632.4,631.98,1.17977798]
[1742979495480,1.19418721,632.39,632.25,1.18563171]
[1742979495685,1.19418721,632.38,632.25,1.18563171]
[1742979495984,1.19418721,632.37,632.25,1.18563171]
[1742979496187,1.19426263,632.36,632.25,1.18563171]
[1742979496378,1.19426263,632.35,632.25,1.18563171]
[1742979496580,1.19426263,632.34,632.25,1.18563171]
[1742979496778,1.19426263,632.33,632.25,1.18563171]
[1742979496982,1.19426263,632.32,632.25,1.18563171]
[1742979497180,1.19426263,632.31,632.25,1.18563171]
[1742979497380,0.95,632.49,632.25,1.18563171]
[1742979497580,1.19428268,632.48,632.25,1.18563171]
[1742979497783,1.19428268,632.47,632.25,1.18563171]
[1742979497984,1.19428268,632.46,632.28,1.18563171]
[1742979498184,1.19428268,632.45,632.28,1.18563171]
[1742979498379,1.19428268,632.44,632.28,1.18563171]
[1742979498584,1.19428268,632.43,632.28,1.18563171]
[1742979498787,1.19428268,632.42,632.28,1.18563171]
[1742979498986,1.19428268,632.41,632.28,1.18563171]
[1742979499187,1.19428268,632.4,632.28,1.18563171]
[1742979499385,1.19428268,632.39,632.28,1.18563171]
[1742979499585,1.19428268,632.38,632.28,1.18563171]
[1742979499786,1.19428268,632.37,632.28,1.18563171]
[1742979499989,1.19428268,632.36,632.28,1.18563171]
[1742979500287,1.19428268,632.35,632.28,1.18563171]
[1742979500487,1.19428268,632.34,632.28,1.18563171]
[1742979500683,0.95,632.49,632.28,1.18563171]
[1742979500684,1.19428268,632.33,632.28,1.18563171]
[1742979500883,1.19428268,632.32,632.28,1.18563171]
[1742979501088,1.19428268,632.31,632.28,1.18563171]
[1742979501388,0.95,632.49,632.28,1.18563171]
[1742979501684,1.19529394,632.48,632.28,1.18563171]
[1742979501890,1.19529394,632.47,632.28,1.18563171]
[1742979502090,1.19529394,632.46,632.28,1.18563171]
[1742979502391,1.19529394,632.46,631.75,2.40871339]
[1742979502392,1.19529394,632.45,632.26,1.18563171]
[1742979502590,1.19529394,632.44,632.26,1.18563171]
[1742979502791,1.19529394,632.43,632.26,1.18563171]
[1742979502985,1.19529394,632.42,632.26,1.18563171]
[1742979503186,1.19529394,632.41,632.26,1.18563171]
[1742979503386,1.19529394,632.4,632.26,1.18563171]
[1742979503586,1.19529394,632.39,632.26,1.18563171]
[1742979503891,1.1954546,632.38,632.26,1.18563171]
[1742979504191,1.1954546,632.37,632.26,1.18563171]
[1742979504392,1.1954546,632.36,632.25,1.18563171]
[1742979504586,1.1954546,632.35,632.25,1.18563171]
[1742979504796,1.1954546,632.34,632.25,1.18563171]
[1742979504997,1.1954546,632.33,632.25,1.18563171]
[1742979505197,1.1954546,632.32,632.25,1.18563171]
[1742979505498,1.1954546,632.31,632.25,1.18563171]
[1742979505698,0.426,632.5,632.25,1.18563171]
[1742979505889,1.19568148,632.49,632.25,1.18563171]
[1742979506095,1.19568148,632.48,632.25,1.18563171]
[1742979506295,1.19568148,632.47,632.25,1.18563171]
[1742979506496,1.19568148,632.46,632.25,1.18563171]
[1742979506698,1.19568148,632.45,632.25,1.18563171]
[1742979506896,1.19568148,632.44,632.21,1.18563171]
[1742979507095,1.19568148,632.43,632.21,1.18563171]
[1742979507295,1.19568148,632.42,632.21,1.18563171]
[1742979507496,1.19568148,632.41,632.21,1.18563171]
[1742979507696,1.19568148,632.4,632.21,1.18563171]
[1742979507893,1.19568148,632.39,632.21,1.18563171]
[1742979508098,1.19568148,632.38,632.21,1.18563171]
[1742979508394,1.19568148,632.37,632.21,1.18563171]
[1742979508597,1.19568148,632.36,632.21,1.18563171]
[1742979508800,1.19568148,632.35,632.21,1.18563171]
[1742979508997,1.19568148,632.34,632.21,1.18563171]
[1742979509193,1.19568148,632.33,632.21,1.18563171]
[1742979509393,1.19568148,632.32,632.21,1.18563171]
[1742979509695,1.19568148,632.31,632.23,1.18563171]
[1742979509899,1.19568148,632.3,632.23,1.18563171]
[1742979510103,0.426,632.53,632.23,1.18563171]
[1742979510301,1.19607613,632.52,632.23,1.18563171]
[1742979510501,1.19606962,632.51,632.23,1.18563171]
[1742979510801,1.19606962,632.5,632.23,1.18563171]
[1742979511001,1.19606962,632.49,632.23,1.18563171]
[1742979511200,1.19606962,632.48,632.23,1.18563171]
[1742979511401,1.19606962,632.47,632.23,1.18563171]
[1742979511700,1.19606962,632.46,632.23,1.18563171]
[1742979512002,1.19606962,632.45,632.13,1.18563171]
[1742979512198,1.19606962,632.44,632.13,1.18563171]
[1742979512399,1.19606962,632.43,632.13,1.18563171]
[1742979512600,1.19606962,632.42,632.13,1.18563171]
[1742979512796,1.19606962,632.41,632.13,1.18563171]
[1742979513000,1.19606962,632.4,632.13,1.18563171]
[1742979513198,1.19606962,632.39,632.13,1.18563171]
[1742979513400,1.19606962,632.38,632.13,1.18563171]
[1742979513595,1.19606962,632.37,632.13,1.18563171]
[1742979513801,1.19606962,632.36,632.13,1.18563171]
[1742979513998,1.19606962,632.35,632.13,1.18563171]
[1742979514202,1.19606962,632.34,632.13,1.18563171]
[1742979514403,1.19606962,632.33,632.13,1.18563171]
[1742979514605,1.19606962,632.32,632.13,1.18563171]
[1742979514803,1.19606962,632.31,632.13,1.18563171]
[1742979515003,1.19606962,632.3,632.13,1.18563171]
[1742979515305,0.426,632.53,631.86,1.17977798]
[1742979515306,1.19606962,632.29,632.12,1.18563171]
[1742979515503,0.426,632.53,632.12,1.18563171]
[1742979515702,1.19630639,632.52,632.12,1.18563171]
[1742979515903,1.19630639,632.51,632.12,1.18563171]
[1742979516101,0.426,632.53,632.12,1.18563171]
[1742979516303,1.19629862,632.52,632.12,1.18563171]
[1742979516498,1.19629862,632.51,632.12,1.18563171]
[1742979516703,1.19629862,632.5,632.12,1.18563171]
[1742979516899,1.19629862,632.49,632.12,1.18563171]
[1742979517105,1.19629862,632.48,632.12,1.18563171]
[1742979517406,1.19629862,632.47,632.12,1.18563171]
[1742979517600,1.19629862,632.46,632.12,1.18563171]
[1742979517807,1.19629862,632.45,632.12,1.18563171]
[1742979518006,1.19629862,632.44,632.15,1.18563171]
[1742979518208,1.19629862,632.43,632.15,1.18563171]
[1742979518506,1.19629862,632.42,632.15,1.18563171]
[1742979518707,1.19629862,632.41,632.15,1.18563171]
[1742979519008,1.19629862,632.4,632.15,1.18563171]
[1742979519208,1.19629862,632.39,632.15,1.18563171]
[1742979519410,1.19629862,632.38,632.15,1.18563171]
[1742979519610,1.19629862,632.37,632.15,1.18563171]
[1742979519810,1.19629862,632.36,632.15,1.18563171]
[1742979520011,1.19629862,632.35,632.3,1.18563171]
[1742979520211,1.19629862,632.34,632.3,1.18563171]
[1742979520410,1.19629862,632.33,632.3,1.18563171]
[1742979520711,1.19629862,632.32,632.3,1.18563171]
[1742979520905,1.19629862,632.31,632.3,1.18563171]
[1742979524009,1.19629862,632.31,632.29,1.18563171]
[1742979524207,1.19629862,632.3,632.29,1.18563171]
[1742979528512,1.19609233,632.3,632.29,1.18563171]
[1742979529720,1.19609233,632.3,631.76,2.40871339]
[1742979529721,1.19609233,632.3,632.27,1.18563171]
[1742979530018,1.19609233,632.29,632.27,1.18563171]
[1742979530218,0.426,632.53,632.27,1.18563171]
[1742979530412,1.19595589,632.52,632.27,1.18563171]
[1742979530615,1.19595589,632.51,632.27,1.18563171]
[1742979530815,1.19595589,632.5,632.27,1.18563171]
[1742979531015,1.19595589,632.49,632.27,1.18563171]
[1742979531212,1.19595589,632.48,632.27,1.18563171]
[1742979531413,1.19595589,632.47,632.27,1.18563171]
[1742979531618,1.19595589,632.46,632.27,1.18563171]
[1742979531818,1.19595589,632.45,632.27,1.18563171]
[1742979532018,1.19595589,632.44,632.27,1.18563171]
[1742979532218,1.19595589,632.43,632.27,1.18563171]
[1742979532415,1.116,632.59,632.27,1.18563171]
[1742979532621,1.19581165,632.58,632.27,1.18563171]
[1742979532918,1.19581165,632.57,632.27,1.18563171]
[1742979533115,1.19581165,632.56,632.27,1.18563171]
[1742979533314,1.19581165,632.55,632.27,1.18563171]
[1742979533618,1.19581165,632.54,632.27,1.18563171]
[1742979533819,1.19581165,632.53,632.27,1.18563171]
[1742979534017,1.19581165,632.52,632.27,1.18563171]
[1742979534214,1.19581165,632.51,632.27,1.18563171]
[1742979534412,1.19581165,632.5,632.27,1.18563171]
[1742979534613,1.19581165,632.49,632.27,1.18563171]
[1742979534817,1.19581165,632.48,632.28,1.18563171]
[1742979535013,1.19581165,632.47,632.28,1.18563171]
[1742979535316,1.19581165,632.46,632.28,1.18563171]
[1742979535516,1.19581165,632.45,632.28,1.18563171]
[1742979535716,1.19581165,632.44,632.28,1.18563171]
[1742979536021,1.19581165,632.43,632.28,1.18563171]
[1742979536216,1.19581165,632.42,632.28,1.18563171]
[1742979536416,1.19581165,632.41,632.28,1.18563171]
[1742979536619,1.19581165,632.4,632.28,1.18563171]
[1742979536919,1.19581165,632.39,632.28,1.18563171]
[1742979537120,1.19581165,632.38,632.28,1.18563171]
[1742979537415,1.19581165,632.37,632.29,1.18563171]
[1742979537622,1.19581165,632.36,632.29,1.18563171]
[1742979537819,1.19581165,632.35,632.29,1.18563171]
[1742979538019,1.19581165,632.34,632.29,1.18563171]
[1742979538221,1.19581165,632.33,632.29,1.18563171]
[1742979538418,1.19581165,632.32,632.29,1.18563171]
[1742979538718,1.19581165,632.31,632.29,1.18563171]